Cogmind - Beta 9.4 @@@ ROGUE MODE // 2020.02.01 @ 20:30:34 Player: Aaron Gorton Result: Destroyed by Y-45 Defender with Heavy Assault Rifle Performance ------------- Evolutions (0) 0 Regions Visited (2) 400 Robots Destroyed (15) 75 Value Destroyed (204) 204 Prototype IDs (0) 0 Alien Tech Used (0) 0 Bonus (0) 0 TOTAL SCORE: 679 Bonus ------- None Cogmind --------- Core Integrity 0/250 Matter 230/350 Energy 125/125 System Corruption 0% Temperature Cool (9) Movement Core (650) Ox12 Location -10/Mines Parts ------- > --- POWER (1) -------- Light Ion Engine > --- PROPULSION (2) --- Flight Unit > --- UTILITY (2) ------ High-capacity Storage Unit Small Matter Pod > --- WEAPON (2) ------- Light Assault Rifle Light Assault Rifle > --- INVENTORY (12) --- Ion Engine Ion Engine Light Ion Engine Aluminum Leg Flight Unit Heat Sink Small Storage Unit Structural Scanner Light Assault Rifle Light Assault Rifle Peak State ------------ > --- POWER ------------ Ion Engine > --- PROPULSION ------- Light Treads Light Treads > --- UTILITY ---------- High-capacity Storage Unit Small Matter Pod > --- WEAPON ----------- Light Assault Rifle Light Assault Rifle > --- INVENTORY -------- Ion Engine Light Ion Engine Aluminum Leg Flight Unit Flight Unit Flight Unit Heat Sink Small Storage Unit Structural Scanner Light Assault Rifle [Rating: 8] Favorites ----------- Power Ion Engine Engine Ion Engine Propulsion Light Treads Treads Light Treads Leg Aluminum Leg Flight Unit Flight Unit Utility High-capacity Storage Unit Device Structural Scanner Storage High-capacity Storage Unit Processor Seismic Analyzer Weapon Light Assault Rifle Energy Gun Medium Laser Ballistic Gun Light Assault Rifle Build | -11 -10 -10 ------- Run | Scr Mat Min Slots Evolved . | . . . Power . | . . . Propulsion . | . . . Utility . | . . . Weapon . | . . . Parts Attached 31 | 4 19 8 Power 7 | 1 2 4 Engine 7 | 1 2 4 Core . | . . . Reactor . | . . . Propulsion 11 | . 8 3 Treads 5 | . 4 1 Leg 2 | . 2 . Wheel . | . . . Hover . | . . . Flight 4 | . 2 2 Utility 5 | 1 4 . Device 1 | . 1 . Storage 3 | 1 2 . Processor 1 | . 1 . Hackware . | . . . Protection . | . . . Artifact . | . . . Weapon 8 | 2 5 1 Energy Gun 2 | 1 1 . Energy Cannon . | . . . Ballistic Gun 6 | 1 4 1 Ballistic Cannon . | . . . Launcher . | . . . Special Weapon . | . . . Impact Weapon . | . . . Slashing Weapon . | . . . Piercing Weapon . | . . . Special Melee Weapon . | . . . Unidentified Prototypes . | . . . Parts Lost 6 | . 3 3 Power . | . . . Propulsion 4 | . 1 3 Utility . | . . . Weapon 2 | . 2 . Highest Loss Streak 3 | . 3 3 Average Slot Usage (%) 96 | . 93 99 Engine 14 | . 14 14 Treads 16 | . 5 27 Leg 10 | . 22 . Device 3 | . 7 . Storage 21 | . 15 28 Processor 1 | . 2 . Energy Gun 7 | . 15 . Ballistic Gun 18 | . 9 28 Naked Turns . | . . . Heaviest Build 42 | 12 42 40 Greatest Support 40 | 3 40 40 Greatest Overweight (x) 3 | 3 2 1 Average Overweight (x) . | 2 . . Largest Inventory Capacity 12 | 6 12 12 Average Capacity 9 | 5 7 12 Most Carried 12 | 5 11 12 Average Carried 7 | 3 5 11 Final Capacity 12 | 6 12 12 Final Carried 11 | 5 11 10 Class Distribution -------------------- 100% | Mutant Dominant Class ---------------- Mutant | -10/Materials Mutant | -10/Mines Resources | -11 -10 -10 ----------- Run | Scr Mat Min Matter Collected 483 | 240 190 53 Remotely . | . . . Salvage Created 365 | . 267 98 Parts 37 | . 21 16 Haulers Intercepted . | . . . Recyclers Shooed 1 | . . 1 Parts Field Recycled . | . . . Retrieved Matter . | . . . Parts Self-Destructed . | . . . Prevented . | . . . Kills | -11 -10 -10 ------- Run | Scr Mat Min Combat Hostiles Destroyed 14 | . 8 6 Melee 1 | . 1 . Guns 13 | . 7 6 Classes Destroyed 3 | . 3 . Recycler 1 | . 1 . Swarmer 12 | . 6 6 Grunt 2 | . 2 . Best Kill Streak 3 | . 3 2 Combat Bots Only 3 | . 3 2 Max Kills in Single Turn 2 | . 2 1 Gunslinging 1 | . 1 . Exploded . | . . . Melee 1 | . 1 . Uniques/NPCs Destroyed . | . . . Combat | -11 -10 -10 -------- Run | Scr Mat Min Damage Taken 1282 | . 849 433 Core 258 | . 143 115 Absorbed by Shields . | . . . Core Remaining (%) 100 | 100 . . Volleys Fired 71 | . 43 28 Largest 2 | . 2 2 Hottest 90 | . 90 40 Shots Fired 119 | . 63 56 Gun 119 | . 63 56 Cannon . | . . . Launcher . | . . . Special . | . . . Kinetic 90 | . 34 56 Thermal 20 | . 20 . Explosive . | . . . Electromagnetic 9 | . 9 . Robot Hit Streak 11 | . 11 7 Robot Miss Streak 3 | . 2 3 Penetration Max . | . . . Secondary Targets 2 | . 1 1 Max Gunslinging Chain 1 | . 1 1 Shots Hit Robots 72 | . 40 32 Core Hits 29 | . 18 11 Critical Hits . | . . . Critical Kills . | . . . Critical Parts Destroyed . | . . . Melee Attacks . | . . . Impact . | . . . Slashing . | . . . Piercing . | . . . Sneak Attacks . | . . . Combat Hostiles . | . . . Follow-up Attacks . | . . . Damage Inflicted 613 | . 403 210 Guns 599 | . 389 210 Cannons . | . . . Explosions . | . . . Melee . | . . . Ramming 14 | . 14 . Kinetic 375 | . 165 210 Thermal 175 | . 175 . Explosive . | . . . Electromagnetic 49 | . 49 . Impact . | . . . Slashing . | . . . Piercing . | . . . Highest Corruption . | . . . Average Corruption . | . . . Corruption Purged . | . . . Overload Shots . | . . . Overflow Damage . | . . . Projectiles . | . . . Explosions . | . . . Melee . | . . . Knockbacks . | . . . Impact . | . . . Kinetic . | . . . Secondary . | . . . Self-Inflicted Damage . | . . . Shots . | . . . Rammed 5 | . 5 . Targets Rammed 5 | . 5 . Kicked . | . . . Crushed . | . . . Highest Temperature 268 | . 268 . Average Temperature 96 | . 96 . Received Heat Transfer 198 | . 132 66 Siege Activations . | . . . Robots Corrupted . | . . . Combat Hostiles . | . . . Parts Fried . | . . . Impact Corruptions . | . . . Robots Melted . | . . . Combat Hostiles . | . . . Parts Melted . | . . . Heat Transferred 518 | . 518 . Parts Sabotaged . | . . . Parts Stolen . | . . . Parts Stripped . | . . . Power Chain Reactions . | . . . Missiles Intercepted . | . . . Alert | -11 -10 -10 ------- Run | Scr Mat Min Peak Influence 159 | . 159 103 Average Influence 38 | . 57 30 Maximum Alert Level . | . . . Low Security (%) 100 | 100 100 100 Level 1 . | . . . Level 2 . | . . . Level 3 . | . . . Level 4 . | . . . Level 5 . | . . . High Security . | . . . Max Security . | . . . Squads Dispatched 2 | . 2 . Investigation 2 | . 2 . Extermination . | . . . Reinforcement . | . . . Assault . | . . . Garrison . | . . . Intercept . | . . . Construction Impeded . | . . . Haulers Reinforced . | . . . Stealth | -11 -10 -10 --------- Run | Scr Mat Min Distress Signals 1 | . 1 . Communications Jammed . | . . . Distress Signals . | . . . Times Spotted 26 | . 17 9 Peak Tracking Total 5 | . 5 3 Tactical Retreats 1 | . 1 . Traps | -11 -10 -10 ------- Run | Scr Mat Min Traps Triggered . | . . . Indirectly . | . . . Trap Hack Attempts . | . . . Triggered . | . . . Disarmed . | . . . Reprogrammed . | . . . Reused . | . . . Traps Extracted . | . . . Installed . | . . . Triggered . | . . . Machines | -11 -10 -10 ---------- Run | Scr Mat Min Machines Disabled 1 | . 1 . Max in Single Turn 1 | . 1 . Machines Sabotaged . | . . . Garrisons Compromised . | . . . Overloaded Fab Kills . | . . . Fab Network Shutdowns . | . . . Hacking | -11 -10 -10 --------- Run | Scr Mat Min Machines Accessed 4 | . 4 . Terminals 3 | . 3 . Fabricators . | . . . Repair Stations . | . . . Recycling Units 1 | . 1 . Scanalyzers . | . . . Garrison Access . | . . . Total Hacks 9 | . 9 . Successful 7 | . 7 . Failed 2 | . 2 . Catastrophic . | . . . Database Lockouts . | . . . Manual 6 | . 6 . Terminals 4 | . 4 . Fabricators . | . . . Repair Stations . | . . . Recycling Units 5 | . 5 . Scanalyzers . | . . . Garrison Access . | . . . Terminal Hacks 2 | . 2 . Record 1 | . 1 . Locate Traps 1 | . 1 . Fabricator Hacks . | . . . Repair Station Hacks . | . . . Recycling Unit Hacks 5 | . 5 . Recycle Component 1 | . 1 . Process 1 | . 1 . Report Inventory 1 | . 1 . Retrieve Components 2 | . 2 . Scanalyzer . | . . . Garrison Access Hacks . | . . . Unauthorized Hacks . | . . . Terminals . | . . . Fabricators . | . . . Repair Stations . | . . . Recycling Units . | . . . Scanalyzers . | . . . Garrison Access . | . . . Data Cores Recovered . | . . . Used . | . . . Hacking Detections 4 | . 4 . Full Trace Events 4 | . 4 . Feedback Events . | . . . Feedback Blocked . | . . . Robot Schematics Acquired . | . . . Robots Built . | . . . Matter . | . . . Time . | . . . Total Robot Build Rating . | . . . Part Schematics Acquired . | . . . Parts Built . | . . . Matter . | . . . Time . | . . . Total Part Build Rating . | . . . Parts Repaired . | . . . Time . | . . . Parts Recycled 1 | . 1 . Recycled Matter 15 | . 15 . Retrieved Matter . | . . . Retrieved Components 10 | . 10 . Parts Scanalyzed . | . . . Part Schematics Acquired . | . . . Parts Damaged . | . . . Bothacking | -11 -10 -10 ------------ Run | Scr Mat Min Used RIF Installer . | . . . Robots Hacked . | . . . Non-combat . | . . . Combat . | . . . Robot Hacks Applied . | . . . Relay Couplers Released . | . . . Robots Rewired . | . . . Allies Hacked . | . . . Hacks Repelled . | . . . Allies | -11 -10 -10 -------- Run | Scr Mat Min Total Allies . | . . . Largest Group . | . . . Highest-Rated Group . | . . . Highest-Rated Ally . | . . . Total Orders . | . . . Ally Attacks . | . . . Total Damage . | . . . Kills . | . . . Allies Corrupted . | . . . Allies Melted . | . . . Intel | -11 -10 -10 ------- Run | Scr Mat Min Robot Analysis Total . | . . . Derelict Logs Recovered . | . . . Drone Launches . | . . . Drone Recoveries . | . . . Exploration | -11 -10 -10 ------------- Run | Scr Mat Min Turns Passed 1165 | 126 497 542 Spaces Moved 615 | 67 270 278 Core 67 | 67 . . Treads 306 | . 28 278 Legs 242 | . 242 . Wheels . | . . . Hover . | . . . Flight . | . . . Fastest Speed 50 | 50 120 160 Average Speed 145 | 162 125 160 Slowest Speed 200 | 200 180 180 Overloaded Moves . | . . . Propulsion Burnouts . | . . . Robots Hopped . | . . . Cave-ins Triggered . | . . . Exploration Rate (%) 25 | 5 28 44 Regions Visited 2 Branch Regions 1 Pre-discovered Areas . | . . . Known Exits Taken . | . . . Unknown Exits Taken 2 | 1 1 . Scrap Searched . | . . . Spaces Dug . | . . . Terrain Destroyed . | . . . Melee . | . . . Projectile . | . . . AOE . | . . . Actions | -11 -10 -10 --------- Run | Scr Mat Min Total 777 | 85 366 326 Wait 25 | 6 8 11 Move 613 | 66 269 278 Hop . | . . . Pick Up 27 | 9 17 1 Fast Attach . | . . . Attach 14 | 4 8 2 Detach 2 | . 2 . Swap 17 | . 11 6 Drop 3 | . 3 . Fire 71 | . 43 28 Melee . | . . . Ram . | . . . Kick 1 | . 1 . Crush 4 | . 4 . Escape Stasis . | . . . Rewire . | . . . Trap . | . . . Miscellaneous . | . . . Route ------- -11/Scrapyard -10/Materials -10/Mines History --------- Turn | Location | Event 10 | -11/Scrapyard | Discovered new exit (range 16) 127 | -11/Scrapyard | Entered Materials 315 | -10/Materials | Build established: Mutant 453 | -10/Materials | Discovered new exit (range 7) 536 | -10/Materials | Core integrity fell below 50% 549 | -10/Materials | Lost 3 parts (1n2w) 624 | -10/Materials | Entered Mines 1132 | -10/Mines | Core integrity fell below 20% 1166 | -10/Mines | Destroyed by Y-45 Defender with Heavy Assault Rifle Last Messages --------------- 00607_ Acquired 12 matter. 00608_ Acquired 20 matter. LOCATION=UNKNOWN GOAL=ESCAPE Something is scanning the area. 00735_ K-01 Serf collects debris. 00984_ S-10 Pest destroyed. 00994_ Switching to secondary target: S-10 Pest. 01006_ R-06 Scavenger collects Lgt. Assault Rifle. 01019_ S-10 Pest destroyed. 01023_ Acquired 17 matter. 01027_ Acquired 19 matter. 01029_ K-01 Serf collects debris. 01033_ Acquired Lgt. Assault Rifle. 01037_ Acquired 17 matter. 01117_ S-10 Pest destroyed. 01139_ Lgt. Treads destroyed. 01140_ S-10 Pest destroyed. 01152_ Flight Unit destroyed. 01165_ Lgt. Treads destroyed. Map ----- +----------------------------------------------------+ | | | | | | | | | | | | | | | | | | | | | | | | | | | | | | | | | | | | | | | ????????????????????####??????????????????????? | | ??????????????????##"!!"#?????????????????????? | | ??????????????????#""[!""?????????????????????? | | ??????????????????#Y ??##????####??????????? | | ???????????????????# ## ##??## ##?????????? | | ??????????????????###//## #??# #?????????? | | ??????????????????# @ #?## #?????????? | | ?????????????????## #### ##????????? | | ????????????????## #### ### ###??????? | | ????????????????# ## g #######? | | ????????????????# g #? | | ????????????????## = ## #### #? | | ?????????????????## **% #### #??# #? | | ??????????????????### #%### ##??# #### ## | | ????????????????????####=??####???## # | | ???????????????????????%=??????????## ##### | | ??????????????????????"""???????????## #???# # | | ????????????????????? """????????????# ##???# # | | ???????????????????? """????????????# #????# # | | ???????????????????# ????????????# #????# # | | ???????????????????# ????????????????# #????# # | | ?????????????????????????????????????# #????# # | | ?????????????????????????????????????# #????# # | | ???????????????????????????????????### #???## # | | ???????????????????????????????????# #???# | | ???????????????????????????????????# ##???# ## | | ???????????????????????????????????# #????# #? | | ???????????????????????????????????# #????# #? | | ???????????????????????????????????# ##???# ## | | ?????????????????????????????????### ##### ## | | ?????????????????????????????????# | +----------------------------------------------------+ Best States ------------- Heat Dissipation 25 Energy Generation 10 Energy Capacity 250 Matter Stores 326 Matter Capacity 350 Sight Range 16 Terrain Scan Density 60 Evasion (%) 50 Recoil Reduction 2 Item Schematics ----------------- None Robot Schematics ------------------ None Fabricated ------------ Nothing Alien Tech Used ----------------- None Achievements -------------- None Challenges ------------ None Game ------ Seed GrenadeDisruptionDatajack Manual? 0 Play Time 00:30:01 Cumulative 9.1 hours Start 2020.02.01 @ 19:50:28 End 2020.02.01 @ 20:30:34 Sessions 1 Manual Loads 0 Difficulty Rogue Special Mode None Game No. 11 Rogue 11 Adventurer 0 Explorer 0 Win Type - Total 0 Types 0/0/0/0/0/0/0 Lore% 3 Gallery% 12 Achievement% 8 Wizard Run 0 Options --------- ASCII 0 Keyboard 0 Movement Mouse Keybinds 0 Fullscreen 1 Font 18/SmallcapsGlow Map View 76x50 Tactical HUD 1 Map Filters NONE Filters NONE Steam 1 RUN: 4f674abd-c47b-41cd-b847-562b9d8fb185